fUST/lending_fUST_20240401
["ID","MTS","AMOUNT","RATE_DAILY","PERIOD"]
[321189074,1711957647124,-197.0534045,0.00041121,2]
[321189075,1711957647144,-288.9366817,0.00041204,2]
[321189076,1711957647165,-9.62303788,0.00041327,2]
[321189077,1711957656963,270.92445539,0.000417,31]
[321189078,1711957757120,-178.1541895,0.00041327,2]
[321189079,1711957757140,-550.0,0.00041628,5]
[321189080,1711957757161,-7772.2964234,0.00041629,4]
[321189081,1711957778522,396.35866371,0.00039535,2]
[321189161,1711957838106,-400.0,0.000415,2]
[321189162,1711957838116,-627.37644199,0.00041629,4]
[321189164,1711957838223,-458.74766623,0.00041629,4]
[321189165,1711957838233,-550.0,0.00041629,3]
[321189166,1711957838242,-501.90559463,0.00041645,15]
[321189167,1711957838253,-392.10846667,0.00041664,2]
[321189168,1711957838264,-1000.0,0.00042,2]
[321189169,1711957838273,-166.666666,0.00042058,2]
[321189170,1711957838282,-161.86810756,0.00042188,30]
[321189171,1711957838291,-306.91180418,0.00042572,2]
[321189172,1711957838301,-3778.82650364,0.00042572,2]
[321189173,1711957838310,-1404.76296756,0.00042596,2]
[321189174,1711957838319,-165718.43442588,0.00042672,60]
[321189175,1711957838329,-316442.54796754,0.00042672,60]
[321189296,1711957843410,-1584.04145644,0.00042672,60]
[321189297,1711957843421,-1804.323423,0.00042672,60]
[321189298,1711957843433,-25923.88434471,0.00042672,60]
[321189299,1711957843444,-1772.49999998,0.00042672,60]
[321189306,1711957846117,-218744.91975345,0.00042672,60]
[321189313,1711957894148,18398.84576041,0.00035,2]
[321189316,1711957953594,162.000001,0.0004,2]
[321189317,1711957989483,-550.0,0.00041417,5]
[321189318,1711957990015,197.998559,0.00040546,120]
[321189321,1711958057013,3748.81509298,0.000125,2]
[321189322,1711958071770,454.26599207,0.00041671,31]
[321189323,1711958071797,155.47297975,0.00041671,31]
[321189324,1711958071866,484.60645388,0.00041671,31]
[321189325,1711958071897,629.9312617,0.00041671,31]
[321189326,1711958072391,2289.34779634,0.000205,5]
[321189327,1711958079820,264.23910914,0.00040572,2]
[321189328,1711958103535,166.666666,0.00041096,2]
[321189329,1711958118255,4600.3389514,0.0004052,2]
[321189330,1711958158282,3573.52202102,0.00035,2]
[321189331,1711958192453,269.97054073,0.00041671,31]
[321189334,1711958217698,4160.65220366,0.00041317,4]
[321189336,1711958309244,538.1550831,0.00040801,2]
[321189337,1711958354225,24900.0,0.00040477,2]
[321189338,1711958366709,171.6095304,0.00040673,2]
[321189339,1711958368245,1006.404297,0.00040905,2]
[321189340,1711958381116,603.00524171,0.00040572,2]
[321189341,1711958407941,648.83845736,0.00040803,2]
[321189342,1711958552517,167.197248,0.0004,2]
[321189343,1711958619216,166.666666,0.00041096,2]
[321189344,1711958676005,1707.1882636,0.00040853,2]
[321189345,1711958682327,402.00349447,0.00040572,2]
[321189346,1711958713436,156.33586925,0.00041096,4]
[321189347,1711958740850,219.381545,0.00040859,120]
[321189348,1711958831182,-1320.86416535,0.00041113,4]
[321189349,1711958842535,177.738568,0.00040492,2]
[321189350,1711958847196,24900.0,0.00040766,2]
[321189351,1711958864732,503.202148,0.00040766,2]
[321189352,1711958984002,268.00232965,0.00038805,2]
[321189353,1711959004776,2178.33579644,0.000417,31]
[321189354,1711959013792,288.9366817,0.0004111,2]
[321189358,1711959031757,155.40963567,0.00040766,4]
[321189508,1711959034999,871.41433267,0.00040766,40]
[321189509,1711959035827,746.21183951,0.00040766,2]
[321189566,1711959038362,-154.86062544,0.00041111,2]
[321189567,1711959038373,-8858.42053162,0.00041112,4]
[321189568,1711959038385,-248.45359701,0.00041117,2]
[321189569,1711959038397,-371.0,0.00041216,5]
[321189570,1711959038408,-550.0,0.00041217,3]
[321189571,1711959038420,-1296.13236944,0.00041218,2]
[321189572,1711959038432,-337.5328967,0.00041241,2]
[321189573,1711959038443,-392.10846667,0.00041318,2]
[321189574,1711959038454,-728.45052221,0.00041321,2]
[321189575,1711959038466,-5331.08478951,0.00041419,2]
[321189576,1711959038477,-379.01915625,0.00041421,2]
[321189577,1711959038489,-162.264199,0.00041421,2]
[321189578,1711959038501,-618.00931961,0.000415,2]
[321189579,1711959038516,-728.4505222,0.00041631,2]
[321189580,1711959038527,-728.4505222,0.00041941,2]
[321189581,1711959038539,-166.666666,0.00042058,2]
[321189582,1711959038551,-728.4505222,0.00042251,2]
[321189583,1711959038563,-728.4505222,0.00042561,2]
[321189584,1711959038574,-306.91180418,0.00042562,2]
[321189585,1711959038586,-3778.82650364,0.00042562,2]
[321189586,1711959038597,-216.36118192,0.0004266,2]
[321189587,1711959038607,-843.80413075,0.0004266,4]
[321189588,1711959038616,-765.37023256,0.00042661,4]
[321189589,1711959038786,-613.1079328,0.00042661,2]
[321189590,1711959038801,-267804.87268828,0.00042662,60]
[321189591,1711959038811,-289.26052503,0.00042662,30]
[321189592,1711959038820,-70786.0,0.00042662,32]
[321189593,1711959038830,-11074.56557195,0.00042662,31]
[321189594,1711959038840,-73622.28493513,0.00042662,60]
[321189595,1711959038849,-2973.74557746,0.00042662,120]
[321189596,1711959038858,-20000.0,0.00042662,30]
[321189597,1711959038867,-15641.0361917,0.00042662,30]
[321189635,1711959040361,11502.52856063,0.00035,2]
[321189639,1711959042914,481.66170174,0.00040766,2]
[321189650,1711959043444,23995.57599708,0.00040766,4]
[321189651,1711959043456,-480.40708669,0.0004266,4]
[321189652,1711959043466,-18209.0179029,0.00042662,30]
[321189653,1711959043475,-7837.53516574,0.00042662,2]
[321189654,1711959043485,-1729.61484199,0.00042662,2]
[321189657,1711959043682,-592.39548237,0.00042662,2]
[321189658,1711959043692,-1022.62038914,0.00042662,2]
[321189659,1711959043701,-3531.04430527,0.00042662,2]
[321189660,1711959043711,-1010.47524005,0.00042662,30]
[321189661,1711959043720,-2382.6552799,0.00042662,120]
[321189662,1711959043730,-3514.79022657,0.00042662,2]
[321189663,1711959043741,-909.62241761,0.00042662,2]
[321189668,1711959043999,-2612.5,0.00042662,2]
[321189669,1711959044010,-2609.138,0.00042662,2]
[321189670,1711959044022,-19296.02002746,0.00042662,2]
[321189671,1711959044031,-13451.999999,0.00042662,2]
[321189672,1711959044040,-207.924,0.00042662,120]
[321189673,1711959044051,-86712.51452445,0.00042662,60]
[321189674,1711959044062,-10085.29429906,0.00042662,60]
[321189675,1711959044072,-6377.69702504,0.00042662,60]
[321189685,1711959046939,-9144.97177259,0.00042662,60]
[321189686,1711959049626,343.61541303,0.00040766,2]
[321189687,1711959052916,713.70201496,0.00040766,40]
[321189688,1711959058886,481.66170174,0.00040766,2]
[321189689,1711959071628,282.0923778,0.00040766,2]
[321189690,1711959078895,481.66170174,0.00040766,2]
[321189691,1711959096905,481.66170174,0.00040766,2]
[321189692,1711959102904,166.666666,0.00041096,2]
[321189693,1711959114925,191.49401802,0.00040766,2]
[321189694,1711959199273,2138.75,0.00041,15]
[321189696,1711959228080,164.536158,0.00041661,120]
[321189697,1711959230308,162.977676,0.0004,2]
[321189698,1711959285565,1130.45771943,0.00040562,2]
[321189699,1711959335712,480.35677153,0.00040562,2]
[321189700,1711959586732,753.63847962,0.00040562,2]
[321189701,1711959595901,166.666666,0.00041096,2]
[321189702,1711959794932,164.536158,0.00040758,120]
[321189703,1711959807461,167.197248,0.0004,2]
[321189704,1711959870247,24900.0,0.00040758,2]
[321189705,1711959888251,502.42565308,0.00040562,2]
[321189706,1711959944509,162.264199,0.00040998,2]
[321189707,1711960052221,-651.0656089,0.00041286,2]
[321189708,1711960182307,166.666666,0.00041096,2]
[321189709,1711960189624,334.95043539,0.00038658,2]
[321189747,1711960232527,-251.601074,0.00041324,2]
[321189749,1711960232536,-168.165325,0.00041375,2]
[321189751,1711960232546,-574.88693867,0.00041643,30]
[321189753,1711960232555,-166.666666,0.00042125,2]
[321189755,1711960232565,-163.58638896,0.00042311,3]
[321189757,1711960232574,-1100.00000099,0.00042398,42]
[321189759,1711960232583,-2531.76443189,0.00042433,4]
[321189804,1711960238526,-462.5,0.00042433,4]
[321189806,1711960238537,-5864.15609973,0.00042433,4]
[321189808,1711960238546,-516.0,0.00042434,3]
[321189810,1711960238556,-3938.21746549,0.00042436,14]
[321189812,1711960238565,-613.1079328,0.00042436,2]
[321189814,1711960238575,-489.01990266,0.00042437,2]
[321189816,1711960238584,-489.01990262,0.00042462,2]
[321189818,1711960238593,-489.01990262,0.00042487,2]
[321189820,1711960238602,-379.01915625,0.00042487,2]
[321189822,1711960238611,-478.0,0.000425,120]
[321189824,1711960238621,-489.01990262,0.00042512,2]
[321189826,1711960238630,-3778.82650364,0.00042536,2]
[321189828,1711960238639,-489.01990262,0.00042537,2]
[321189830,1711960238649,-765.37023256,0.00042635,4]
[321189831,1711960238658,-1022.20309639,0.00042636,60]
[321189834,1711960238670,-473414.65637129,0.00042636,60]
[321189835,1711960238690,-14269.91178316,0.00042636,60]
[321189836,1711960238700,-6381.09851456,0.00042636,60]
[321189893,1711960254109,4946.43729987,0.00038658,4]
[321189894,1711960264742,11648.04040011,0.00035,2]
[321189895,1711960279057,164.536158,0.00041636,120]
[321189896,1711960477327,251.601074,0.00040846,2]
[321189897,1711960490745,223.30029026,0.00040536,2]
[321189898,1711960550882,154.86062544,0.00040536,4]
[321189899,1711960567885,522.2194426,0.00040828,2]
[321189900,1711960568868,288.24897162,0.00040536,4]
[321189901,1711960590657,33474.89634206,0.00035,2]
[321189902,1711960595610,1877.6069,0.00038993,30]
[321189903,1711960595954,481.66170174,0.00040536,2]
[321189904,1711960598864,155.40963567,0.00040536,4]
[321189905,1711960602107,156.33586925,0.00040536,4]
[321189906,1711960603912,746.21183951,0.00040536,2]
[321189907,1711960605567,10059.25895158,0.00040536,4]
[321189908,1711960615916,191.49401802,0.00040536,2]
[321189909,1711960621625,2138.75,0.00041,15]
[321189910,1711960623842,480.35677153,0.00040536,2]
[321189911,1711960664576,8086.385079,0.00040524,2]
[321189912,1711960726873,1707.1882636,0.00040538,2]
[321189913,1711960760227,164.843043,0.0004,2]
[321189914,1711960791853,1848.30858847,0.00040536,2]
[321189915,1711960803372,200.707112,0.000411,2]
[321189916,1711960808239,648.83845736,0.0004078,2]
[321189917,1711960859479,24900.0,0.00040964,2]
[321189918,1711960869458,189.4983,0.0004078,4]
[321189919,1711960875458,164.536158,0.00041273,120]
[321189920,1711960938331,166.666666,0.00041096,2]
[321189922,1711961042877,172.337716,0.00040832,2]
[321189923,1711961055034,5725.6141971,0.00041106,2]
[321189924,1711961093051,1232.20572564,0.00040536,2]
[321189925,1711961146230,392.10846667,0.00041097,2]
[321189926,1711961193210,-252.64893181,0.00041192,2]
[321189928,1711961240111,-495.61312409,0.00041191,4]
[321189929,1711961251230,1296.13236944,0.00041098,2]
[321189932,1711961304816,5168.4795265,0.00035,2]
[321189937,1711961357400,24900.0,0.00040571,2]
[321189938,1711961394121,197.0534045,0.00040571,2]
[321189939,1711961395250,821.47048376,0.00038864,2]
[321190005,1711961432694,-288.9366817,0.00041184,2]
[321190006,1711961432703,-2410.61744276,0.00041184,2]
[321190007,1711961432713,-8858.42053162,0.00041185,4]
[321190008,1711961432722,-371.0,0.00041186,3]
[321190009,1711961432732,-550.0,0.00041189,3]
[321190010,1711961432741,-14978.70848339,0.00041192,4]
[321190011,1711961432751,-627.91702082,0.00041192,2]
[321190012,1711961432760,-3908.88193799,0.00041197,4]
[321190014,1711961432770,-510.9833183,0.00041198,2]
[321190016,1711961432779,-162.264199,0.00041205,2]
[321190018,1711961432788,-1144.95378,0.00041267,2]
[321190020,1711961432797,-416.85820547,0.00041403,2]
[321190022,1711961432807,-5448.6724841,0.00041641,2]
[321190024,1711961432816,-416.85820547,0.00041687,2]
[321190026,1711961432825,-416.85820547,0.0004197,2]
[321190028,1711961432837,-166.666666,0.00042101,2]
[321190029,1711961432845,-416.85820547,0.00042254,2]
[321190030,1711961432854,-1000.0,0.000425,2]
[321190031,1711961432863,-3400.94385333,0.00042536,2]
[321190032,1711961432872,-416.85820547,0.00042537,2]
[321190034,1711961432882,-1618.55403302,0.000426,2]
[321190036,1711961432891,-160.3719831,0.00042635,2]
[321190038,1711961432900,-4520.50814165,0.00042636,4]
[321190040,1711961432910,-42258.60916556,0.00042636,60]
[321190046,1711961437010,166.666666,0.00041096,2]
[321190067,1711961438891,-166.666666,0.00042181,2]
[321190069,1711961438901,-482254.29874982,0.00042636,60]
[321190235,1711961444445,-78221.64920605,0.00042636,60]
[321190236,1711961444454,-152.10636294,0.00042636,44]
[321190237,1711961444463,-152.10636294,0.00042636,44]
[321190238,1711961444472,-152.10636294,0.00042636,44]
[321190239,1711961444481,-7610.04,0.00042636,7]
[321190240,1711961444489,-7610.04,0.00042636,7]
[321190241,1711961444498,-942.39072501,0.00042636,4]
[321190242,1711961444508,-5331.08478951,0.00042636,2]
[321190243,1711961444517,-154.30231638,0.00042657,60]
[321190244,1711961444526,-202.53576065,0.0004266,4]
[321190245,1711961444534,-843.80413075,0.0004266,4]
[321190246,1711961444543,-208.2060555,0.00042661,2]
[321190247,1711961444552,-271.0,0.000427,2]
[321190248,1711961444561,-679.66620274,0.00042718,2]
[321190250,1711961444570,-200.0,0.00042718,4]
[321190251,1711961444578,-203.40897576,0.00042718,4]
[321190252,1711961444589,-155.0,0.00043,90]
[321190253,1711961444598,-155.0,0.00043014,90]
[321190255,1711961444607,-166.666666,0.00043266,2]
[321190257,1711961444617,-161.86810756,0.00043601,30]
[321190259,1711961444626,-150.0,0.00043657,60]
[321190261,1711961444635,-821.47048376,0.00043864,2]
[321190263,1711961444644,-166.666666,0.00044351,2]
[321190265,1711961444654,-150.0,0.00044657,60]
[321190267,1711961444663,-236.2802,0.00044737,2]
[321190269,1711961444671,-155.0,0.00044877,90]
[321190271,1711961444680,-600.0,0.000449,2]
[321190273,1711961444690,-368.63237732,0.0004497,4]
[321190275,1711961444699,-361.37185206,0.00044971,4]
[321190277,1711961444708,-211.39,0.00044999,7]
[321190279,1711961444717,-211.39,0.00044999,7]
[321190281,1711961444726,-211.39,0.00044999,7]
[321190283,1711961444737,-8676.15065072,0.00045,120]
[321190285,1711961444746,-12519.51947007,0.00045,30]
[321190288,1711961444759,-8357.9292997,0.00045,30]
[321190290,1711961444770,-20569.47730616,0.00045,30]
[321190292,1711961444782,-8931.83982693,0.00045,30]
[321190484,1711961449043,-288.9366817,0.00042635,2]
[321190486,1711961449052,-1805.56941076,0.00044999,2]
[321190488,1711961449062,-8855.88367264,0.00044999,4]
[321190490,1711961449071,-179658.68723905,0.00045,30]
[321190561,1711961631629,12190.3400898,0.0002,2]
[321190563,1711961655732,341.69048828,0.000195,2]
[321190564,1711961658918,3748.81509298,0.000125,2]
[321190565,1711961664250,736.7451447,0.000351,2]
[321190566,1711961673626,255.11280428,0.0003624,2]
[321190567,1711961674497,4988.0,0.0004,2]
[321190568,1711961678109,4590.31220074,0.0002877,2]
[321190569,1711961678763,4784.20699586,0.0004,2]
[321190570,1711961679802,22944.93197084,0.0004013,2]
[321190573,1711961908133,481.66170174,0.0004013,2]
[321190574,1711961910271,156.33586925,0.0004013,4]
[321190575,1711961911059,154.86062544,0.0004013,4]
[321190576,1711961915879,1877.6069,0.00039004,30]
[321190577,1711961916298,28942.01329695,0.0004013,4]
[321190578,1711961918023,746.21183951,0.0004013,2]
[321190579,1711961920829,40019.82561076,0.00035,2]
[321190580,1711961921575,2138.75,0.00041,15]
[321190581,1711961923696,189.4983,0.0004013,4]
[321190582,1711961927044,154.86062544,0.0004013,4]
[321190583,1711961930120,481.66170174,0.0004013,2]
[321190584,1711961940015,746.21183951,0.0004013,2]
[321190585,1711961941032,10271.59065791,0.00035,2]
[321190586,1711961945045,288.79798185,0.0004013,4]
[321190587,1711961948457,166.666666,0.00041096,2]
[321190588,1711961950113,481.66170174,0.0004013,2]
[321190589,1711961960171,359.85272285,0.0004013,2]
[321190590,1711961968107,481.66170174,0.00041096,2]
[321190591,1711961986107,191.49401802,0.00041096,2]
[321190592,1711962007683,648.83845736,0.0004078,2]
[321190595,1711962392179,-226.04397692,0.00040465,2]
[321190596,1711962419782,163.350749,0.0004,2]
[321190597,1711962441106,-1320.86416535,0.00040399,2]
[321190600,1711962600213,1998.09001086,0.0003803,2]
[321190601,1711962622681,240.12376979,0.00030297,4]
[321190673,1711962632442,18379.6033255,0.0003803,4]
[321190707,1711962637947,-1599.76,0.00040393,4]
[321190709,1711962637957,-23579.13583465,0.00040399,2]
[321190711,1711962637966,-5492.13795357,0.00040466,2]
[321190716,1711962638003,-2594.24712543,0.00040466,2]
[321190718,1711962638012,-698.277427,0.0004073,2]
[321190720,1711962638021,-197.0534045,0.0004078,2]
[321190722,1711962638030,-166.666666,0.00041096,2]
[321190724,1711962638039,-1707.1882636,0.00041137,2]
[321190726,1711962638048,-1296.13236944,0.00041191,2]
[321190728,1711962638056,-163.943118,0.00041241,2]
[321190730,1711962638065,-6247.8336397,0.00041291,2]
[321190732,1711962638074,-337.5328967,0.00041451,2]
[321190734,1711962638084,-392.10846667,0.00041506,2]
[321190736,1711962638093,-303.23489786,0.00041606,4]
[321190738,1711962638102,-166.666666,0.00042058,2]
[321190740,1711962638111,-1092.97759675,0.00042069,2]
[321190742,1711962638120,-1092.97759673,0.00042187,2]
[321190744,1711962638128,-1092.97759673,0.00042305,2]
[321190746,1711962638137,-1092.97759673,0.00042422,2]
[321190748,1711962638146,-1103.50134955,0.00042534,2]
[321190749,1711962638155,-1092.97759673,0.0004254,2]
[321190751,1711962638164,-3060.84946797,0.0004254,2]
[321190753,1711962638174,-2000.0,0.0004262,2]
[321190755,1711962638183,-1157.80341846,0.00042634,4]
[321190757,1711962638192,-154.30231638,0.00042637,60]
[321190759,1711962638201,-250.0,0.00042638,7]
[321190761,1711962638211,-8858.42053162,0.00042638,4]
[321190764,1711962638222,-2113.9,0.00042639,7]
[321190765,1711962638230,-2113.9,0.00042639,7]
[321190767,1711962638239,-2113.9,0.00042639,7]
[321190770,1711962638249,-2113.9,0.00042639,7]
[321190772,1711962638258,-2113.9,0.00042639,7]
[321190773,1711962638267,-2113.9,0.00042639,7]
[321190775,1711962638277,-2113.9,0.00042639,7]
[321190778,1711962638286,-2113.9,0.00042639,7]
[321190779,1711962638295,-2113.9,0.00042639,7]
[321190781,1711962638304,-2113.9,0.00042639,7]
[321190783,1711962638313,-434068.1895359,0.0004264,60]
[321190875,1711962642990,-288.9366817,0.00040392,2]
[321190876,1711962643000,-179.43599836,0.0004244,2]
[321190877,1711962643009,-1873.54830078,0.0004264,60]
[321190878,1711962643049,-58357.9292997,0.0004264,60]
[321190879,1711962643061,-20569.47730616,0.0004264,60]
[321190880,1711962643306,-710008.84425999,0.0004264,60]
[321190881,1711962643316,-289.47920184,0.0004264,30]
[321190882,1711962643325,-48835.69521079,0.0004264,32]
[321190883,1711962643339,-318.73148852,0.0004264,32]
[321190896,1711962645950,-179.43599834,0.0004249,2]
[321190897,1711962645959,-3291.51400166,0.0004264,32]
[321190900,1711962971124,24900.0,0.00039908,2]
[321190901,1711962980523,163.378999,0.0004,2]
[321190902,1711962999187,197.0534045,0.00039769,2]
[321190903,1711963006754,698.277427,0.00039769,2]
[321190904,1711963098138,170.239067,0.0003933,2]
[321190908,1711963263932,6247.8336397,0.0003967,2]
[321190909,1711963485339,164.843043,0.0004,2]
[321190910,1711963501120,349.138713,0.00039586,2]
[321190911,1711963509257,17421.91053329,0.00039586,2]
[321190912,1711963627135,-154.86062544,0.00039521,2]
[321190913,1711963627157,-496.20498346,0.00039522,4]
[321190914,1711963805335,1127.23694615,0.00037808,2]
[321190978,1711963838204,-254.82306109,0.00037808,2]
[321190979,1711963838213,-7751.11796517,0.00039282,4]
[321190980,1711963838223,-2099.58,0.00039283,4]
[321190981,1711963838232,-651.0656089,0.00039288,2]
[321190982,1711963838241,-1707.1882636,0.00039523,2]
[321190983,1711963838250,-7478.08946671,0.00039586,2]
[321190984,1711963838260,-1092.97759675,0.00039984,2]
[321190985,1711963838269,-1296.13236944,0.00040084,2]
[321190986,1711963838278,-392.10846667,0.00040192,2]
[321190987,1711963838287,-248.45359701,0.00040292,2]
[321190988,1711963838296,-1452.94721261,0.000405,10]
[321190989,1711963838305,-1092.97759673,0.00040624,2]
[321190990,1711963838314,-303.23489786,0.00040998,4]
[321190991,1711963838323,-1157.80341846,0.00040998,4]
[321190992,1711963838332,-208.2060555,0.00040999,2]
[321190993,1711963838341,-29958.44401143,0.00041,2]
[321190994,1711963838351,-166.666666,0.00041096,2]
[321190995,1711963838360,-1092.97759673,0.00041263,2]
[321190996,1711963838369,-1092.97759673,0.00041903,2]
[321190997,1711963838379,-166.666666,0.00042058,2]
[321190998,1711963838388,-500.0,0.000424,2]
[321190999,1711963838397,-500.0,0.000424,2]
[321191000,1711963838406,-206.00310655,0.000424,2]
[321191001,1711963838415,-206.00310653,0.000424,2]
[321191002,1711963838424,-206.00310653,0.000424,2]
[321191003,1711963838433,-2000.0,0.000425,2]
[321191004,1711963838442,-1092.97759673,0.00042542,2]
[321191005,1711963838451,-18340.05929903,0.00042629,32]
[321191006,1711963838460,-11082.93778099,0.00042629,31]
[321191007,1711963838469,-152.10636294,0.00042629,44]
[321191008,1711963838479,-152.10636294,0.00042629,44]
[321191009,1711963838488,-152.10636294,0.00042629,44]
[321191010,1711963838497,-200.0,0.00042642,4]
[321191011,1711963838507,-679.66620274,0.00042642,2]
[321191012,1711963838516,-942.39072501,0.00042642,4]
[321191013,1711963838525,-361.37185206,0.00042642,4]
[321191014,1711963838534,-203.40897576,0.00042642,4]
[321191015,1711963838543,-368.63237732,0.00042642,4]
[321191016,1711963838552,-5331.08478951,0.00042642,2]
[321191017,1711963838561,-202.53576065,0.00042642,4]
[321191018,1711963838570,-1382.06000724,0.00042808,2]
[321191019,1711963838579,-1000.0,0.00043,2]
[321191020,1711963838588,-155.0,0.00043,90]
[321191021,1711963838597,-155.0,0.00043014,90]
[321191022,1711963838607,-166.666666,0.00043019,2]
[321191023,1711963838617,-186.34920008,0.00043331,2]
[321191024,1711963838626,-19922.57248675,0.00043333,2]
[321191025,1711963838635,-150.0,0.00043637,60]
[321191026,1711963838644,-166.666666,0.00043981,2]
[321191027,1711963838654,-150.0,0.00044637,60]
[321191028,1711963838748,-236.2802,0.00044774,2]
[321191029,1711963838759,-155.0,0.00044877,90]
[321191030,1711963838769,-166.666666,0.00044942,2]
[321191031,1711963838778,-204.85640812,0.00044998,4]
[321191032,1711963838787,-23506.69065238,0.00045,30]
[321191033,1711963838797,-8676.15065072,0.00045,120]
[321191034,1711963838807,-150.5701,0.00045,2]
[321191035,1711963838815,-150.0,0.00045657,60]
[321191036,1711963838825,-166.666666,0.00045904,2]
[321191037,1711963838835,-11613.13159988,0.00046,2]
[321191038,1711963838844,-150.0,0.00046657,60]
[321191039,1711963838856,-13602.90607664,0.0004698,120]
[321191040,1711963838865,-20346.25371989,0.00047,4]
[321191041,1711963838874,-158.0,0.00047121,90]
[321191042,1711963838884,-153.0,0.00047391,2]
[321191043,1711963838894,-153.0,0.00047391,2]
[321191044,1711963838903,-202.3118837,0.00047391,2]
[321191045,1711963838912,-306.0,0.00047391,2]
[321191046,1711963838921,-1382.06000724,0.00047808,2]
[321191047,1711963838931,-135113.36060649,0.00048904,6]
[321191048,1711963838942,-80434.81925607,0.00049,30]
[321191049,1711963838951,-3361.32360003,0.00049,120]
[321191050,1711963838961,-412.24699698,0.00049,10]
[321191051,1711963838970,-5618.0,0.00049,120]
[321191052,1711963838978,-3060.84946797,0.000499,2]
[321191053,1711963838987,-270.12046051,0.0005,30]
[321191054,1711963838997,-8496.94674158,0.0005,120]
[321191055,1711963839006,-13529.11680612,0.0005,120]
[321191056,1711963839015,-31333.97757045,0.0005,120]
[321191073,1711963843987,-2626.17699411,0.0005,120]
[321191074,1711963844047,-926.0,0.0005,120]
[321191075,1711963844061,-53525.50887908,0.0005,120]
[321191093,1711964162115,-1664.51172982,0.00042049,4]
[321191094,1711964162139,-1735.48827018,0.0004205,4]
[321191097,1711964182111,-5000.0,0.000375,2]
[321191098,1711964192311,-12701.78369024,0.000375,2]
[321191101,1711964263526,210.16972615,0.00032054,4]
[321191102,1711964264894,354.57922976,0.00039999,7]
[321191104,1711964278570,-2399.52,0.00041093,4]
[321191105,1711964278591,-8858.42053162,0.00041094,4]
[321191106,1711964281134,275.67262286,0.00039999,4]
[321191107,1711964283825,463.53746325,0.00039999,4]
[321191108,1711964285628,210.16972615,0.00032054,4]
[321191109,1711964307622,210.16972615,0.00032054,4]
[321191110,1711964315140,154.86062544,0.00039999,4]
[321191111,1711964329623,209.92401583,0.00032054,4]
[321191112,1711964358243,463.53746325,0.00041065,4]
[321191114,1711964405767,2399.52,0.00041095,4]
[321191125,1711964538780,2399.52,0.00041065,4]
[321191126,1711964549791,7450.57552891,0.00041008,4]
[321191134,1711964615999,-767.56331264,0.00041418,4]
[321191135,1711964641294,-162.0000002,0.0004,2]
[321191136,1711964641317,-174.569356,0.00041009,2]
[321191137,1711964641339,-163.943118,0.00041066,2]
[321191138,1711964641363,-166.666666,0.00041096,2]
[321191139,1711964641386,-24232.8208598,0.00041419,2]
[321191141,1711964659796,-667.1791402,0.00041419,2]
[321191142,1711964659819,-168.15910487,0.00041535,2]
[321191143,1711964660679,-169.37379183,0.00041535,2]
[321191144,1711964660703,-400.0,0.00042,2]
[321191145,1711964660726,-166.666666,0.00042128,2]
[321191146,1711964660749,-99.29778724,0.00042642,2]
[321191147,1711964661919,-279.72136901,0.00042642,2]
[321191148,1711964703221,835.33824507,0.00035,2]
[321191149,1711964703248,35610.96534467,0.00035,2]
[321191151,1711964731256,-406.26621499,0.00042738,7]
[321191152,1711964801648,-516.0,0.00042737,3]
[321191153,1711964801671,-827.6478815,0.00042738,4]
[321191154,1711964801694,-288.85685848,0.00042738,2]
[321191155,1711964801715,-400.0,0.00042738,2]
[321191156,1711964801737,-722.09783486,0.00042738,4]
[321191157,1711964801758,-501.49202396,0.00042738,4]
[321191158,1711964801779,-976.2570446,0.00042738,4]
[321191159,1711964801800,-2409.91881192,0.00042738,2]
[321191160,1711964801821,-679.41918016,0.00042738,2]
[321191161,1711964801843,-386.87624831,0.00042738,4]
[321191162,1711964801865,-158.14007817,0.00042738,4]
[321191163,1711964801887,-463.53746325,0.00042738,4]
[321191164,1711964801909,-857.73591431,0.00042739,4]